Cogmind - Beta 15 @@@ ROGUE MODE // 2025.06.30 @ 22:17:30 Player: CheifClapdad Result: Destroyed by as-24389 with Assembled Maul Performance ------------- Evolutions (1) 500 Regions Visited (3) 600 Robots Destroyed (22) 110 Value Destroyed (560) 560 Prototype IDs (0) 0 Alien Tech Used (0) 0 Bonus (0) 0 TOTAL SCORE: 1770 Bonus ------- None Cogmind --------- Core Integrity 0/400 Matter 299/300 Energy 90/100 System Corruption 0% Temperature Cool (10) Movement Treading (400) Ox3 Location -9/Mines Parts ------- > --- POWER (1) -------- (None) > --- PROPULSION (3) --- Improved Treads > --- UTILITY (3) ------ Huge Storage Unit Visual Processing Unit Sensor Array > --- WEAPON (2) ------- Beam Rifle Light Assault Rifle > --- INVENTORY (25) --- Medium Matter Pod (100) Large Matter Pod (150) Large Matter Pod (150) Signal Interpreter Targeting Computer Grenade Launcher Grenade Launcher Grenade Launcher Peak State ------------ > --- POWER ------------ Light Ion Engine > --- PROPULSION ------- Light Treads Improved Treads Wheel > --- UTILITY ---------- Huge Storage Unit Visual Processing Unit Sensor Array > --- WEAPON ----------- Assault Rifle Improved Light Cannon > --- INVENTORY -------- Medium Matter Pod Large Matter Pod Large Matter Pod Signal Interpreter Targeting Computer Beam Rifle Light Assault Rifle Grenade Launcher Grenade Launcher [Rating: 13] Favorites ----------- Power Light Ion Engine Engine Light Ion Engine Propulsion Wheel Treads Light Treads Wheel Wheel Utility Huge Storage Unit Device Sensor Array Storage Huge Storage Unit Processor Visual Processing Unit Weapon Light Assault Rifle Energy Gun Beam Rifle Ballistic Gun Light Assault Rifle Ballistic Cannon Improved Light Cannon Build | -11 -10 -9 -9 ------- Run | Yrd Mat Mat Min Slots Evolved 2 | . . 2 . Power . | . . . . Propulsion 1 | . . 1 . Utility 1 | . . 1 . Weapon . | . . . . Parts Attached 24 | 5 8 7 4 Power 3 | . 1 2 . Engine 3 | . 1 2 . Core . | . . . . Reactor . | . . . . Propulsion 8 | 2 2 2 2 Treads 4 | 1 . 1 2 Leg . | . . . . Wheel 4 | 1 2 1 . Hover . | . . . . Flight . | . . . . Utility 4 | 1 2 1 . Device 1 | . . 1 . Storage 2 | 1 1 . . Processor 1 | . 1 . . Hackware . | . . . . Protection . | . . . . Artifact . | . . . . Weapon 9 | 2 3 2 2 Energy Gun 1 | . . . 1 Energy Cannon . | . . . . Ballistic Gun 7 | 2 3 1 1 Ballistic Cannon 1 | . . 1 . Launcher . | . . . . Special Weapon . | . . . . Impact Weapon . | . . . . Slashing Weapon . | . . . . Piercing Weapon . | . . . . Special Melee Weapon . | . . . . Unidentified Prototypes . | . . . . Parts Lost 17 | . 6 6 5 Power 3 | . 1 1 1 Propulsion 7 | . 2 3 2 Utility . | . . . . Weapon 7 | . 3 2 2 Highest Loss Streak 5 | . 4 3 5 To Critical Strikes . | . . . . Average Backups 9 | 3 11 10 8 Power 1 | 1 2 . . Propulsion . | 1 2 . . Utility 3 | . 1 5 5 Weapon 3 | . 5 4 3 Tool/Special . | . . . . Unused Backups 8 | . . . 8 Power . | . . . . Propulsion . | . . . . Utility 5 | . . . 5 Weapon 3 | . . . 3 Tool/Special . | . . . . Average Slot Usage (%) 78 | . 81 90 68 Engine 3 | . 1 10 . Treads 10 | . . 20 11 Wheel 10 | . 25 8 . Device 7 | . . 10 11 Storage 12 | . 14 11 11 Processor 11 | . 11 11 11 Energy Gun 4 | . . . 10 Ballistic Gun 17 | . 27 15 10 Ballistic Cannon 1 | . . 2 . Peak Build Rating 13 | 5 9 12 13 Average Rating 8 | 4 7 10 9 On Entrance 5 | . 5 7 10 Naked Turns . | . . . . Heaviest Build 90 | 8 86 90 90 Greatest Support 43 | 20 26 16 43 Greatest Overweight (x) 29 | . 8 29 8 Average Overweight (x) 4 | . 3 6 3 Largest Inventory Capacity 25 | 8 25 25 25 Average Capacity 23 | 6 24 25 25 Most Carried 18 | 5 18 13 10 Average Carried 9 | 3 11 10 8 Final Capacity 25 | 8 25 25 25 Final Carried 14 | 5 14 11 8 Class Distribution -------------------- 87% | Mutant 12% | Scavenger-Mutant Dominant Class ---------------- Mutant | -10/Materials Mutant | -9/Materials Mutant | -9/Mines Resources | -11 -10 -9 -9 ----------- Run | Yrd Mat Mat Min Matter Collected 1106 | 248 366 300 192 Remotely . | . . . . Salvage Created 821 | . 405 416 . Parts 41 | . 22 19 . Haulers Intercepted 1 | . . 1 . Recyclers Shooed 1 | . 1 . . Parts Field Recycled . | . . . . Retrieved Matter . | . . . . Parts Self-Destructed . | . . . . Prevented . | . . . . Kills | -11 -10 -9 -9 ------- Run | Yrd Mat Mat Min Combat Hostiles Destroyed 17 | . 9 7 1 Guns 17 | . 9 7 1 Classes Destroyed 7 | . 5 2 . Worker 2 | . 1 1 . Hauler 1 | . . 1 . Recycler 1 | . 1 . . Watcher 1 | . 1 . . Swarmer 3 | . 3 . . Grunt 11 | . 6 5 . Sentry 2 | . . 2 . Best Kill Streak 4 | . 3 4 1 Combat Bots Only 4 | . 3 4 1 Max Kills in Single Turn 2 | . 2 1 1 Gunslinging 1 | . 1 . . Exploded . | . . . . Melee . | . . . . Uniques/NPCs Destroyed 1 | . . . 1 YI-UF0 (-9/Mines) Combat | -11 -10 -9 -9 -------- Run | Yrd Mat Mat Min Hostile Shots Fired 171 | . 64 79 28 Missed 31 | . 11 13 7 Hits 140 | . 53 66 21 Melee 1 | . . . 1 Projectile 139 | . 53 66 20 AOE 22 | . . . 22 Critical Strikes 4 | . 1 3 . Damage Taken 2277 | . 618 887 772 Core 545 | . 134 176 235 Absorbed by Shields . | . . . . Core Remaining (%) 73 | 100 46 . . Volleys Fired 116 | . 51 57 8 Largest 2 | . 2 2 2 Hottest 76 | . 40 40 76 Shots Fired 192 | . 92 88 12 Gun 188 | . 92 88 8 Cannon 4 | . . . 4 Launcher . | . . . . Special . | . . . . Kinetic 188 | . 92 88 8 Thermal 4 | . . . 4 Explosive . | . . . . Electromagnetic . | . . . . Robot Hit Streak 13 | . 13 12 9 Robot Miss Streak 5 | . 2 5 1 Penetration Max . | . . . . Secondary Targets 2 | . 1 1 . Max Gunslinging Chain 1 | . 1 1 . Shots Hit Robots 137 | . 65 62 10 Core Hits 44 | . 24 18 2 Critical Kills 2 | . 1 1 . Critical Parts Destroyed 1 | . 1 . . Critical Strikes 4 | . 2 2 . Destroy 4 | . 2 2 . Melee Attacks . | . . . . Impact . | . . . . Slashing . | . . . . Piercing . | . . . . Sneak Attacks . | . . . . Combat Hostiles . | . . . . Follow-up Attacks . | . . . . Damage Inflicted 1438 | . 690 608 140 Guns 1360 | . 690 608 62 Cannons 78 | . . . 78 Explosions . | . . . . Melee . | . . . . Ramming . | . . . . Kinetic 1409 | . 690 608 111 Thermal 29 | . . . 29 Explosive . | . . . . Electromagnetic . | . . . . Impact . | . . . . Slashing . | . . . . Piercing . | . . . . Highest Corruption 4 | . 4 . . Average Corruption 3 | . 3 . . Corruption Purged . | . . . . Corruption Blocked . | . . . . Overload Shots . | . . . . Overflow Damage . | . . . . Projectiles . | . . . . Explosions . | . . . . Melee . | . . . . Knockbacks 2 | . . . 2 Impact . | . . . . Kinetic 2 | . . . 2 Secondary . | . . . . Self-Inflicted Damage . | . . . . Shots . | . . . . Rammed . | . . . . Targets Rammed . | . . . . Kicked . | . . . . Crushed . | . . . . Highest Temperature 40 | . 36 24 40 Average Temperature 9 | . 10 5 19 Received Heat Transfer 735 | . 318 405 12 Siege Activations . | . . . . Martial Activations . | . . . . Shielding Activations . | . . . . Robots Disrupted . | . . . . Combat Hostiles . | . . . . Robots Corrupted . | . . . . Combat Hostiles . | . . . . Parts Fried . | . . . . Impact Corruptions . | . . . . Robots Melted . | . . . . Combat Hostiles . | . . . . Parts Melted . | . . . . Heat Transferred 74 | . . . 74 Parts Sabotaged . | . . . . Parts Stolen . | . . . . Parts Stripped . | . . . . Power Chain Reactions . | . . . . Alert | -11 -10 -9 -9 ------- Run | Yrd Mat Mat Min Maximum Alert Level . | . . . . Low Security (%) 100 | 100 100 100 100 Level 1 . | . . . . Level 2 . | . . . . Level 3 . | . . . . Level 4 . | . . . . Level 5 . | . . . . High Security . | . . . . Max Security . | . . . . Peak Influence 90 | . 76 90 . Initial 9 | . . 9 . Average 10 | . 18 21 . Influence Increases 453 | . 261 192 . Destroy 0b10 Robot/C 320 | . 180 140 . Destroy 0b10 Robot/NC 25 | . 15 10 . Destroy Leader 84 | . 42 42 . Successful Hack 8 | . 8 . . Destroy Structure 1 | . 1 . . Lose Combat Pursuer 15 | . 15 . . Influence Decreases 453 | . 239 214 . Entered New Map 13 | . . 13 . Time Decay 380 | . 219 161 . Lost Part 60 | . 20 40 . Squads Dispatched 3 | . 2 1 . Investigation 1 | . . 1 . Extermination . | . . . . Reinforcement 2 | . 2 . . Assault . | . . . . Garrison . | . . . . Intercept . | . . . . Searches Triggered . | . . . . Construction Impeded . | . . . . Haulers Reinforced . | . . . . Active Scanning Responses . | . . . . Cargo Convoy Interrupts . | . . . . Stealth | -11 -10 -9 -9 --------- Run | Yrd Mat Mat Min Distress Signals 1 | . . . 1 Communications Jammed . | . . . . Distress Signals . | . . . . Times Spotted 27 | . 13 12 2 Peak Tracking Total 6 | . 3 6 1 Tactical Retreats 1 | . 1 . . Traps | -11 -10 -9 -9 ------- Run | Yrd Mat Mat Min Traps Triggered 3 | . 3 . . Indirectly . | . . . . Trap Hack Attempts . | . . . . Triggered . | . . . . Disarmed . | . . . . Reprogrammed . | . . . . Reused . | . . . . Traps Extracted . | . . . . Installed . | . . . . Triggered . | . . . . Machines | -11 -10 -9 -9 ---------- Run | Yrd Mat Mat Min Machines Disabled . | . . . . Max in Single Turn . | . . . . Machines Repaired . | . . . . Machines Dismantled . | . . . . Machines Sabotaged . | . . . . Overloaded Fab Kills . | . . . . Hacking | -11 -10 -9 -9 --------- Run | Yrd Mat Mat Min Machines Accessed 3 | . 1 2 . Terminals 3 | . 1 2 . Fabricators . | . . . . Repair Stations . | . . . . Recycling Units . | . . . . Scanalyzers . | . . . . Garrison Access . | . . . . Total Hacks 8 | . 2 6 . Successful 3 | . 2 1 . Failed 5 | . . 5 . Catastrophic 1 | . . 1 . Database Lockouts . | . . . . Manual 8 | . 2 6 . Terminals 8 | . 2 6 . Fabricators . | . . . . Repair Stations . | . . . . Recycling Units . | . . . . Scanalyzers . | . . . . Garrison Access . | . . . . Terminal Hacks 1 | . 1 . . Branch Access Points 1 | . 1 . . Fabricator Hacks . | . . . . Repair Station Hacks . | . . . . Recycling Unit Hacks . | . . . . Scanalyzer . | . . . . Garrison Access Hacks . | . . . . Unauthorized Hacks 2 | . 1 1 . Terminals 2 | . 1 1 . Botnet 2 | . 1 1 . Fabricators . | . . . . Repair Stations . | . . . . Recycling Units . | . . . . Scanalyzers . | . . . . Garrison Access . | . . . . Data Cores Recovered . | . . . . Used . | . . . . Hacking Detections 3 | . 1 2 . Full Trace Events 1 | . . 1 . Feedback Events . | . . . . Feedback Blocked . | . . . . Robot Schematics Acquired . | . . . . Robots Built . | . . . . Authchips . | . . . . Time . | . . . . Total Robot Build Rating . | . . . . Part Schematics Acquired . | . . . . Parts Built . | . . . . Authchips . | . . . . Time . | . . . . Total Part Build Rating . | . . . . Parts Repaired . | . . . . Time . | . . . . Parts Recycled . | . . . . Recycled Matter . | . . . . Retrieved Matter . | . . . . Retrieved Components . | . . . . Parts Scanalyzed . | . . . . Part Schematics Acquired . | . . . . Parts Damaged . | . . . . Bothacking | -11 -10 -9 -9 ------------ Run | Yrd Mat Mat Min Used RIF Installer . | . . . . Robots Hacked . | . . . . Non-combat . | . . . . Combat . | . . . . Robot Hacks Applied . | . . . . Relay Couplers Released . | . . . . Fabnet Peak Effective % . | . . . . Robots Rewired . | . . . . Allies Hacked . | . . . . Hacks Repelled . | . . . . Allies | -11 -10 -9 -9 -------- Run | Yrd Mat Mat Min Total Allies . | . . . . Largest Group . | . . . . Highest-Rated Group . | . . . . Highest-Rated Ally . | . . . . Total Orders . | . . . . Ally Attacks . | . . . . Total Damage . | . . . . Kills . | . . . . Allies Corrupted . | . . . . Allies Melted . | . . . . Intel | -11 -10 -9 -9 ------- Run | Yrd Mat Mat Min Active Infowar (turns) 2364 | . 731 581 1052 Optics 2364 | . 731 581 1052 Sensors 1630 | . . 578 1052 Robot Analysis Total . | . . . . Derelict Logs Recovered 1 | . . . 1 Drone Launches . | . . . . Drone Recoveries . | . . . . Exploration | -11 -10 -9 -9 ------------- Run | Yrd Mat Mat Min Turns Passed 2640 | 133 874 581 1052 Spaces Moved 983 | 83 476 187 237 Core 16 | 9 . 7 . Treads 308 | 72 31 . 205 Legs . | . . . . Wheels 659 | 2 445 180 32 Hover . | . . . . Flight . | . . . . Fastest Speed 50 | 50 135 175 200 Average Speed 216 | 146 145 232 372 Slowest Speed 1500 | 160 200 1500 400 Overloaded Moves . | . . . . Propulsion Burnouts . | . . . . Robots Hopped . | . . . . Potential Cave-ins . | . . . . Cave-ins Triggered . | . . . . Exploration Rate (%) 34 | 5 65 24 42 Regions Visited 3 Branch Regions 1 Pre-discovered Areas 1 | . . . 1 Known Exits Taken . | . . . . Unknown Exits Taken 3 | 1 1 1 . Scrap Searched 2 | . . . 2 Spaces Dug . | . . . . Terrain Destroyed . | . . . . Melee . | . . . . Projectile . | . . . . AOE . | . . . . Terrain Rammed . | . . . . Walls Destroyed . | . . . . Machines Disabled . | . . . . Actions | -11 -10 -9 -9 --------- Run | Yrd Mat Mat Min Total 1320 | 92 573 258 397 Wait 172 | . 21 4 147 Move 980 | 82 475 186 237 Hop . | . . . . Pick Up 24 | 5 15 3 1 Fast Attach 10 | 5 3 2 . Attach 16 | . 6 6 4 Detach . | . . . . Swap 1 | . 1 . . Drop 1 | . 1 . . Fire 116 | . 51 57 8 Melee . | . . . . Ram . | . . . . Kick . | . . . . Crush . | . . . . Escape Stasis . | . . . . Rewire . | . . . . Trap . | . . . . Miscellaneous . | . . . . Route ------- -11/Scrapyard -10/Materials (discovered 4 exits: *Mat x2 / Min / [*Sub]) -9/Materials -9/Mines History --------- Turn | Location | Event 26 | -11/Scrapyard | Discovered new exit (range 15) 134 | -11/Scrapyard | Entered Materials 156 | -10/Materials | Identified exit to Mines 225 | -10/Materials | Discovered new exit (range 9) 317 | -10/Materials | Build established: Mutant 466 | -10/Materials | Discovered new exit (range 18) 934 | -10/Materials | Derelicts attacked the area 968 | -10/Materials | Core integrity fell below 50% 984 | -10/Materials | Lost 4 parts (1p1n2w) 992 | -10/Materials | Discovered new exit (range 5) 1008 | -10/Materials | Entered another Materials area 1008 | -9/Materials | Evolved 2 slots: Propulsion x1, Utility x1 1349 | -9/Materials | Lost 3 parts (1p1n1w) 1480 | -9/Materials | Discovered new exit (range 7) 1589 | -9/Materials | Entered Mines 1614 | -9/Mines | YI-UF0 nonchalantly dropped a Grenade Launcher on the ground 1650 | -9/Mines | Core integrity fell below 50% 1666 | -9/Mines | Core integrity fell below 20% 1674 | -9/Mines | Destroyed YI-UF0 1696 | -9/Mines | Lost 5 parts (1p2n2w) 1781 | -9/Mines | Learned location of Recycling (-7) 1986 | -9/Mines | Assembled infested the area 2641 | -9/Mines | Destroyed by as-24389 with Assembled Maul Last Messages --------------- 01702_ U-05 Engineer lays Concrete. 01703_ The unstable cave ceiling collapses. 01703_ U-05 Engineer lays Concrete. 01707_ The unstable cave ceiling collapses. 01707_ U-05 Engineer lays Concrete. 01730_ U-05 Engineer builds a Wall. 01761_ Searching scrap... 01761_ Found Spread Laser. 01761_ Found Mace. 01761_ Found 42 Matter. 01761_ Found 53 Matter. 01762_ Acquired 49 matter. 01781_ Acquired derelict log, extracted data. World map updated: -7/Recycling. 01937_ Searching scrap... 01937_ Found Sml. Laser. 01937_ Found Sml. Storage Unit. 01937_ Found 38 Matter. 01986_ ALERT: Infestation in the mines, dispatching Demolisher response squad. Map ----- +----------------------------------------------------+ | ????????????????????####??????????????####??????## | | ##??????###????????##[ ##????????????## ###### | | #?????## ##???????#% #########????# ## | | #?##### #???????#! #????# | | #?# #???????# #?????# """ | | ### ##??????## ###### #??????# """ # | | ### #???????## ##????# #??????## """ ## | | #####?# ##???????# ##?????# ######### #? | | #?????# ####????# #??????# ## #? | | #?????# #????# #??????################ #? | | #????## ### #????# #?????????????????????#/ #? | | #???## ##?# #????# #####?????????????????#%%#? | | #??## ##??# ###### #?????????????????# [#? | | #?## ##???# ### #?????????????????# #? | | ### ##????# ########?# #?????????????????# #? | | ## #?????# #????##### #######???????????# #? | | ##### ##?????# #????# #???????????# #? | | #???# #??????# #????# #??????????## #? | | #???# #??????# #????# """ """ #??????????# ## | | #???# #??????# #????# """ """ #??????????# # | | ##???# #??????# #????# """ """ #??????????# | | ?????# #??????# #????# #??????????## [ | | ?????# #??????# #????# """ """ #?? ????????## % | | ?????# ??????# #????# """ """ #? ???????## * | | ?????# ??????? ?????# a""" """ #? ???????### | | ?????###??????? ?????# @ ## ??????# | | ??????????????? ?????# ## ###### | | ???????????????#?????############## | | ??????????????????????????????????# | | ??????????????????????????????????# ####### ## | | ?????????????????????????????????????????????# # | | ?????????????????????????????????????????????#### | | ????????????????????????????????????????????# | | ????????????????????????????????????????????# | | ????????????????????????????????????????????# | | ????????????????????????????????????????????# | | ????????????????????????????????????????????### # | | ??????????????????????????????????????????????## # | | ???????????????????????????????????????????????### | | ???????????????????????????????????????????????## | | ?????????????????????????????????????????????### | | ????????????????????????????????????????????## | | ???????????????????????????????????????????## | | ???????????????????????????????????????????# | | ??????????????????????????????????????????## | | ??????????????????????????????????????????# | | ??????????????????????????????????????????# | | ???????????????????????????????????? ## | | ????????????????????????????????????? ## #?## | | ?????????????????????????????????????? ??# ???## | +----------------------------------------------------+ Best States ------------- Heat Dissipation 28 Energy Generation 10 Energy Capacity 250 Matter Stores 300 Matter Capacity 300 Sight Range 18 Robot Scan Range 14 Terrain Scan Density 10 Evasion (%) 44 Recoil Reduction 2 Item Schematics ----------------- None Robot Schematics ------------------ None Fabricated ------------ Nothing Repaired ---------- Nothing Alien Tech Used ----------------- None Achievements -------------- None Challenges ------------ None Game ------ Seed DefenseCombatDisintegrator Manual? 0 Play Time 00:09:49 Cumulative 102.2 hours Start 2025.06.30 @ 22:09:29 End 2025.06.30 @ 22:17:30 Sessions 1 Manual Loads 0 Difficulty Rogue Special Mode None Game No. 140 Rogue 140 Adventurer 0 Explorer 0 Win Type - Total 1 Types 1/0/0/0/0/0/0/0/0/0 Lore% 40 Gallery% 52 Achievement% 47 Wizard Run 0 Options --------- Layout 1 ASCII 0 Keyboard 0 Movement Arrows Keybinds 0 Fullscreen 1 Font 24/Smallcaps Map View 50x35 Zoom Use 0% Tactical HUD 1 Map Filters NONE Filters NONE Steam X RUN: 82f8cab9-d90c-4f68-b008-7e3d5b287e1d